fUST/lending_fUST_20240813
["ID","MTS","AMOUNT","RATE_DAILY","PERIOD"]
[334732238,1723518639242,-500.0,0.00013698,2]
[334732239,1723518639252,-500.0,0.00013698,2]
[334732240,1723518639261,-349.59613718,0.00013698,2]
[334732241,1723518639271,-500.0,0.00013698,2]
[334732242,1723518639280,-500.0,0.00013698,2]
[334732243,1723518639290,-500.0,0.00013698,2]
[334732244,1723518639300,-500.0,0.00013698,2]
[334732245,1723518639310,-500.0,0.00013698,2]
[334732246,1723518639319,-500.0,0.00013698,2]
[334732247,1723518639329,-502.42920818,0.00013698,2]
[334732248,1723518639338,-369.68006595,0.00013698,2]
[334732249,1723518639348,-500.0,0.00013698,2]
[334732250,1723518639358,-350.0,0.00013698,2]
[334732251,1723518639367,-500.0,0.00013698,2]
[334732252,1723518639376,-500.0,0.00013698,2]
[334732253,1723518639387,-500.0,0.00013698,2]
[334732254,1723518639396,-500.0,0.00013698,2]
[334732255,1723518639405,-500.0,0.00013698,2]
[334732256,1723518639416,-500.0,0.00013698,2]
[334732257,1723518639425,-500.0,0.00013698,2]
[334732258,1723518639434,-500.0,0.00013698,2]
[334732259,1723518639444,-500.0,0.00013698,2]
[334732260,1723518639454,-500.0,0.00013698,2]
[334732261,1723518639463,-714.28,0.00013698,2]
[334732262,1723518639473,-504.12316771,0.00013698,2]
[334732263,1723518639482,-500.0,0.00013698,2]
[334732264,1723518639491,-500.0,0.00013698,2]
[334732265,1723518639501,-503.10120113,0.00013698,2]
[334732266,1723518639510,-500.0,0.00013698,2]
[334732267,1723518639520,-500.0,0.00013698,2]
[334732268,1723518639529,-500.0,0.00013698,2]
[334732269,1723518639538,-500.0,0.00013698,2]
[334732270,1723518639547,-500.0,0.00013698,2]
[334732271,1723518639558,-509.08617267,0.00013698,2]
[334732272,1723518639567,-500.0,0.00013698,2]
[334732273,1723518639577,-500.0,0.00013698,2]
[334732274,1723518639586,-500.0,0.00013698,2]
[334732275,1723518639595,-500.0,0.00013698,2]
[334732276,1723518639605,-506.37693255,0.00013698,2]
[334732277,1723518639614,-470.61676239,0.00013698,2]
[334732278,1723518639623,-500.0,0.00013698,2]
[334732279,1723518639633,-502.57236202,0.00013698,2]
[334732280,1723518639642,-505.62042349,0.00013698,2]
[334732281,1723518639652,-502.20059774,0.00013698,2]
[334732282,1723518639662,-505.23657201,0.00013698,2]
[334732283,1723518639672,-525.95628427,0.00013698,2]
[334732284,1723518639682,-505.59341651,0.00013698,2]
[334732285,1723518639691,-510.90448398,0.00013698,2]
[334732286,1723518639701,-503.34123474,0.00013698,2]
[334732287,1723518639710,-500.0,0.00013698,2]
[334732288,1723518639719,-500.0,0.00013698,2]
[334732289,1723518639729,-502.15237208,0.00013698,2]
[334732290,1723518639739,-500.0,0.00013698,2]
[334732291,1723518639748,-507.49307374,0.00013698,2]
[334732292,1723518639758,-500.0,0.00013698,2]
[334732293,1723518639943,-500.0,0.00013698,2]
[334732294,1723518639953,-509.39676028,0.00013698,2]
[334732295,1723518639962,-500.0,0.00013698,2]
[334732296,1723518639971,-527.41057258,0.00013698,2]
[334732297,1723518639981,-798.52,0.00013698,2]
[334732298,1723518639990,-500.0,0.00013698,2]
[334732299,1723518639999,-500.0,0.00013698,2]
[334732300,1723518640008,-518.82,0.00013698,2]
[334732301,1723518640019,-500.0,0.00013698,2]
[334732302,1723518640028,-510.94107302,0.00013698,2]
[334732303,1723518640038,-174.10656079,0.00013698,2]
[334732304,1723518640047,-387.24154549,0.00013698,2]
[334732305,1723518640057,-500.0,0.00013698,2]
[334732306,1723518640066,-500.0,0.00013698,2]
[334732307,1723518640076,-505.89185005,0.00013698,2]
[334732308,1723518640085,-507.12995694,0.00013698,2]
[334732309,1723518640095,-500.0,0.00013698,2]
[334732310,1723518640104,-500.0,0.00013698,2]
[334732311,1723518640114,-205.60716256,0.00013698,2]
[334732312,1723518640124,-500.0,0.00013698,2]
[334732313,1723518640133,-500.0,0.00013698,2]
[334732314,1723518640142,-500.0,0.00013698,2]
[334732315,1723518640154,-500.0,0.00013698,2]
[334732316,1723518640163,-503.59029948,0.00013698,2]
[334732317,1723518640173,-500.0,0.00013698,2]
[334732318,1723518640182,-501.37628776,0.00013698,2]
[334732319,1723518640192,-500.0,0.00013698,2]
[334732320,1723518640202,-500.0,0.00013698,2]
[334732321,1723518640211,-500.0,0.00013698,2]
[334732322,1723518640221,-400.39519462,0.00013698,2]
[334732323,1723518640230,-505.85991615,0.00013698,2]
[334732324,1723518640242,-518.09544858,0.00013698,2]
[334732325,1723518640251,-500.0,0.00013698,2]
[334732326,1723518640262,-501.24271416,0.00013698,2]
[334732327,1723518640272,-500.0,0.00013698,2]
[334732328,1723518640281,-500.0,0.00013698,2]
[334732329,1723518640293,-500.0,0.00013698,2]
[334732330,1723518640303,-504.48336683,0.00013698,2]
[334732331,1723518640312,-500.0,0.00013698,2]
[334732332,1723518640322,-502.78650335,0.00013698,2]
[334732333,1723518640331,-500.0,0.00013698,2]
[334732334,1723518640340,-500.0,0.00013698,2]
[334732335,1723518640350,-509.28732185,0.00013698,2]
[334732336,1723518640360,-500.0,0.00013698,2]
[334732338,1723518640369,-500.0,0.00013698,2]
[334732339,1723518640378,-505.46445379,0.00013698,2]
[334732340,1723518640387,-500.41746684,0.00013698,2]
[334732341,1723518640396,-504.52624612,0.00013698,2]
[334732342,1723518640405,-500.0,0.00013698,2]
[334732343,1723518640415,-491.63,0.00013698,2]
[334732344,1723518640424,-510.28057163,0.00013698,2]
[334732345,1723518640434,-500.0,0.00013698,2]
[334732346,1723518640443,-509.09791838,0.00013698,2]
[334732347,1723518640453,-285.75841401,0.00013698,2]
[334732348,1723518640463,-500.0,0.00013698,2]
[334732349,1723518640472,-500.0,0.00013698,2]
[334732350,1723518640481,-500.0,0.00013698,2]
[334732351,1723518640491,-510.98804911,0.00013698,2]
[334732352,1723518640500,-500.0,0.00013698,2]
[334732353,1723518640509,-500.0,0.00013698,2]
[334732354,1723518640519,-619.46,0.00013698,2]
[334732355,1723518640538,-518.15476045,0.00013698,2]
[334732356,1723518640548,-568.01,0.00013698,2]
[334732357,1723518640559,-500.0,0.00013698,2]
[334732358,1723518640570,-500.0,0.00013698,2]
[334732359,1723518640579,-500.0,0.00013698,2]
[334732360,1723518640589,-564.49,0.00013698,2]
[334732361,1723518640599,-501.42185491,0.00013698,2]
[334732362,1723518640609,-500.0,0.00013698,2]
[334732363,1723518640619,-500.85794831,0.00013698,2]
[334732364,1723518640629,-504.97906983,0.00013698,2]
[334732365,1723518640639,-503.26821161,0.00013698,2]
[334732366,1723518640648,-500.0,0.00013698,2]
[334732367,1723518640658,-500.0,0.00013698,2]
[334732368,1723518640668,-500.0,0.00013698,2]
[334732369,1723518640678,-500.0,0.00013698,2]
[334732370,1723518640688,-500.0,0.00013698,2]
[334732371,1723518640698,-500.0,0.00013698,2]
[334732372,1723518640708,-512.12221757,0.00013698,2]
[334732373,1723518640718,-500.0,0.00013698,2]
[334732374,1723518640728,-507.85,0.00013698,2]
[334732375,1723518640739,-500.0,0.00013698,2]
[334732376,1723518640748,-500.0,0.00013698,2]
[334732377,1723518640759,-1705.04,0.00013698,2]
[334732378,1723518640769,-512.89114188,0.00013698,2]
[334732379,1723518640778,-500.0,0.00013698,2]
[334732380,1723518640788,-504.58301167,0.00013698,2]
[334732381,1723518640798,-500.0,0.00013698,2]
[334732382,1723518640808,-500.0,0.00013698,2]
[334732383,1723518640817,-504.932046,0.00013698,2]
[334732384,1723518640827,-507.34383413,0.00013698,2]
[334732385,1723518640837,-500.0,0.00013698,2]
[334732386,1723518640847,-500.0,0.00013698,2]
[334732387,1723518640857,-235.05888984,0.00013698,2]
[334732388,1723518640866,-500.0,0.00013698,2]
[334732389,1723518640876,-500.0,0.00013698,2]
[334732390,1723518640886,-500.0,0.00013698,2]
[334732391,1723518640895,-504.4672631,0.00013698,2]
[334732392,1723518640905,-558.13731337,0.00013698,2]
[334732393,1723518640915,-502.73642905,0.00013698,2]
[334732394,1723518640924,-501.05716437,0.00013698,2]
[334732395,1723518640934,-554.51659599,0.00013698,2]
[334732396,1723518640944,-500.0,0.00013698,2]
[334732397,1723518640954,-500.0,0.00013698,2]
[334732398,1723518640963,-500.0,0.00013698,2]
[334732399,1723518640974,-854.94,0.00013698,2]
[334732400,1723518640984,-500.0,0.00013698,2]
[334732401,1723518640994,-500.0,0.00013698,2]
[334732402,1723518641003,-500.0,0.00013698,2]
[334732403,1723518641013,-500.0,0.00013698,2]
[334732404,1723518641022,-505.59683593,0.00013698,2]
[334732405,1723518641032,-500.0,0.00013698,2]
[334732406,1723518641042,-500.0,0.00013698,2]
[334732407,1723518641051,-500.0,0.00013698,2]
[334732408,1723518641060,-608.07,0.00013698,2]
[334732409,1723518641070,-505.13353969,0.00013698,2]
[334732410,1723518641079,-482.43252552,0.00013698,2]
[334732411,1723518641089,-500.0,0.00013698,2]
[334732412,1723518641099,-500.0,0.00013698,2]
[334732413,1723518641108,-1301.79,0.00013698,2]
[334732414,1723518641118,-500.0,0.00013698,2]
[334732415,1723518641128,-500.0,0.00013698,2]
[334732416,1723518641137,-500.0,0.00013698,2]
[334732417,1723518641148,-500.0,0.00013698,2]
[334732418,1723518641158,-228.49623559,0.00013698,2]
[334732419,1723518641168,-509.77,0.00013698,2]
[334732420,1723518641178,-500.0,0.00013698,2]
[334732421,1723518641187,-500.0,0.00013698,2]
[334732422,1723518641203,-500.0,0.00013698,2]
[334732423,1723518641214,-500.0,0.00013698,2]
[334732424,1723518641224,-538.07066586,0.00013698,2]
[334732425,1723518641234,-500.0,0.00013698,2]
[334732426,1723518641246,-500.0,0.00013698,2]
[334732427,1723518641257,-500.0,0.00013698,2]
[334732428,1723518641267,-500.0,0.00013698,2]
[334732429,1723518641276,-500.0,0.00013698,2]
[334732430,1723518641286,-500.0,0.00013698,2]
[334732431,1723518641296,-500.0,0.00013698,2]
[334732432,1723518641308,-513.9837574,0.00013698,2]
[334732433,1723518641317,-503.33068561,0.00013698,2]
[334732434,1723518641327,-500.0,0.00013698,2]
[334732435,1723518641337,-285.46548247,0.00013698,2]
[334732436,1723518641347,-500.0,0.00013698,2]
[334732437,1723518641356,-500.0,0.00013698,2]
[334732438,1723518641365,-500.0,0.00013698,2]
[334732439,1723518641375,-504.47820726,0.00013698,2]
[334732440,1723518641388,-507.8846365,0.00013698,2]
[334732441,1723518641398,-507.16041193,0.00013698,2]
[334732442,1723518641408,-500.0,0.00013698,2]
[334732443,1723518641418,-504.18759248,0.00013698,2]
[334732444,1723518641428,-503.93780289,0.00013698,2]
[334732445,1723518641438,-500.0,0.00013698,2]
[334732446,1723518641448,-500.0,0.00013698,2]
[334732447,1723518641458,-503.16115165,0.00013698,2]
[334732448,1723518641469,-500.0,0.00013698,2]
[334732449,1723518641479,-506.75545438,0.00013698,2]
[334732450,1723518641489,-505.12008702,0.00013698,2]
[334732451,1723518641499,-600.17,0.00013698,2]
[334732452,1723518641509,-665.7,0.00013698,2]
[334732453,1723518641520,-500.0,0.00013698,2]
[334732454,1723518641530,-509.45464959,0.00013698,2]
[334732455,1723518641540,-500.0,0.00013698,2]
[334732456,1723518641549,-1139.33,0.00013698,2]
[334732457,1723518641559,-500.0,0.00013698,2]
[334732458,1723518641568,-500.0,0.00013698,2]
[334732459,1723518641578,-500.0,0.00013698,2]
[334732460,1723518641588,-500.0,0.00013698,2]
[334732461,1723518641598,-2767.2,0.00013698,2]
[334732462,1723518641608,-895.92,0.00013698,2]
[334732463,1723518641618,-500.0,0.00013698,2]
[334732464,1723518641627,-1099.57,0.00013698,2]
[334732465,1723518641637,-500.0,0.00013698,2]
[334732466,1723518641647,-610.16,0.00013698,2]
[334732467,1723518641657,-514.14392242,0.00013698,2]
[334732468,1723518641668,-688.92,0.00013698,2]
[334732469,1723518641678,-1055.07,0.00013698,2]
[334732470,1723518641688,-877.87,0.00013698,2]
[334732471,1723518641697,-293.75168834,0.00013698,2]
[334732472,1723518641707,-1783.22,0.00013698,2]
[334732473,1723518641716,-863.4,0.00013698,2]
[334732474,1723518641727,-500.0,0.00013698,2]
[334732475,1723518641736,-500.0,0.00013698,2]
[334732476,1723518641746,-500.0,0.00013698,2]
[334732477,1723518641756,-586.8,0.00013698,2]
[334732478,1723518641766,-500.0,0.00013698,2]
[334732479,1723518641775,-500.0,0.00013698,2]
[334732480,1723518641785,-500.0,0.00013698,2]
[334732481,1723518641796,-504.38063046,0.00013698,2]
[334732482,1723518641806,-500.0,0.00013698,2]
[334732483,1723518641816,-874.19,0.00013698,2]
[334732484,1723518641826,-928.73,0.00013698,2]
[334732485,1723518641836,-500.0,0.00013698,2]
[334732486,1723518641846,-500.0,0.00013698,2]
[334732487,1723518641856,-500.0,0.00013698,2]
[334732488,1723518641865,-507.79661399,0.00013698,2]
[334732489,1723518641875,-6358.93,0.00013698,2]
[334732490,1723518641886,-500.0,0.00013698,2]
[334732491,1723518641896,-500.0,0.00013698,2]
[334732492,1723518641906,-500.0,0.00013698,2]
[334732493,1723518641917,-1091.1,0.00013698,2]
[334732494,1723518641927,-367.81216837,0.00013698,2]
[334732495,1723518641936,-500.0,0.00013698,2]
[334732496,1723518641947,-500.0,0.00013698,2]
[334732497,1723518641957,-500.0,0.00013698,2]
[334732498,1723518641967,-500.0,0.00013698,2]
[334732499,1723518641977,-3354.49,0.00013698,2]
[334732500,1723518641986,-789.35,0.00013698,2]
[334732501,1723518641996,-500.0,0.00013698,2]
[334732502,1723518642006,-500.0,0.00013698,2]
[334732503,1723518642016,-500.0,0.00013698,2]
[334732504,1723518642025,-500.0,0.00013698,2]
[334732505,1723518642035,-509.99697858,0.00013698,2]
[334732506,1723518642045,-1002.58,0.00013698,2]
[334732507,1723518642055,-500.0,0.00013698,2]
[334732508,1723518642064,-500.0,0.00013698,2]
[334732509,1723518642074,-500.0,0.00013698,2]
[334732510,1723518642084,-500.0,0.00013698,2]
[334732511,1723518642093,-553.40827954,0.00013698,2]
[334732512,1723518642103,-1244.37,0.00013698,2]
[334732513,1723518642112,-3169.96,0.00013698,2]
[334732514,1723518642122,-500.0,0.00013698,2]
[334732515,1723518642131,-716.0,0.00013698,2]
[334732516,1723518642141,-500.0,0.00013698,2]
[334732517,1723518642152,-874.27,0.00013698,2]
[334732518,1723518642162,-912.65,0.00013698,2]
[334732519,1723518642175,-637.46,0.00013698,2]
[334732520,1723518642185,-515.75,0.00013698,2]
[334732521,1723518642197,-500.0,0.00013698,2]
[334732522,1723518642206,-505.56303483,0.00013698,2]
[334732523,1723518642216,-500.0,0.00013698,2]
[334732524,1723518642226,-503.10663543,0.00013698,2]
[334732525,1723518642235,-500.0,0.00013698,2]
[334732526,1723518642247,-503.23853271,0.00013698,2]
[334732527,1723518642256,-500.0,0.00013698,2]
[334732528,1723518642266,-500.0,0.00013698,2]
[334732529,1723518642275,-1656.7,0.00013698,2]
[334732530,1723518642292,-504.60165406,0.00013698,2]
[334732531,1723518642301,-500.0,0.00013698,2]
[334732532,1723518642311,-500.0,0.00013698,2]
[334732533,1723518642320,-506.96510961,0.00013698,2]
[334732534,1723518642330,-500.0,0.00013698,2]
[334732535,1723518642339,-517.5851199,0.00013698,2]
[334732536,1723518642349,-510.71182565,0.00013698,2]
[334732537,1723518642359,-508.09704504,0.00013698,2]
[334732538,1723518642368,-500.0,0.00013698,2]
[334732539,1723518642377,-500.9843488,0.00013698,2]
[334732540,1723518642387,-500.0,0.00013698,2]
[334732541,1723518642397,-500.0,0.00013698,2]
[334732542,1723518642406,-503.56450761,0.00013698,2]
[334732543,1723518642415,-500.0,0.00013698,2]
[334732544,1723518642425,-503.25303715,0.00013698,2]
[334732545,1723518642434,-500.0,0.00013698,2]
[334732546,1723518642443,-434.18530355,0.00013698,2]
[334732547,1723518642453,-1134.98,0.00013698,2]
[334732548,1723518642463,-504.0,0.00013698,2]
[334732549,1723518642472,-1089.16,0.00013698,2]
[334732550,1723518642481,-651.3,0.00013698,2]
[334732551,1723518642490,-508.12700078,0.00013698,2]
[334732552,1723518642500,-500.0,0.00013698,2]
[334732553,1723518642509,-680.92,0.00013698,2]
[334732554,1723518642518,-1274.67,0.00013698,2]
[334732555,1723518642527,-500.0,0.00013698,2]
[334732556,1723518642537,-500.0,0.00013698,2]
[334732557,1723518642546,-500.0,0.00013698,2]
[334732558,1723518642555,-500.0,0.00013698,2]
[334732559,1723518642564,-500.0,0.00013698,2]
[334732560,1723518642574,-270.742307,0.00013698,2]
[334732561,1723518642583,-282.70644405,0.00013698,2]
[334732562,1723518642593,-500.0,0.00013698,2]
[334732563,1723518642602,-1290.78,0.00013698,2]
[334732564,1723518642612,-500.0,0.00013698,2]
[334732565,1723518642623,-500.0,0.00013698,2]
[334732566,1723518642632,-3091.18,0.00013698,2]
[334732567,1723518642642,-520.71,0.00013698,2]
[334732568,1723518642651,-500.0,0.00013698,2]
[334732569,1723518642661,-500.0,0.00013698,2]
[334732570,1723518642671,-1194.25,0.00013698,2]
[334732571,1723518642681,-507.85061605,0.00013698,2]
[334732572,1723518642691,-201.28516139,0.00013698,2]
[334732573,1723518642700,-502.36127202,0.00013698,2]
[334732574,1723518642710,-500.0,0.00013698,2]
[334732575,1723518642721,-500.0,0.00013698,2]
[334732576,1723518642732,-500.0,0.00013698,2]
[334732577,1723518642742,-500.0,0.00013698,2]
[334732578,1723518642752,-500.0,0.00013698,2]
[334732579,1723518642763,-500.0,0.00013698,2]
[334732580,1723518642773,-500.0,0.00013698,2]
[334732581,1723518642783,-775.19,0.00013698,2]
[334732582,1723518642793,-517.91119328,0.00013698,2]
[334732583,1723518642802,-726.63,0.00013698,2]
[334732584,1723518642812,-1188.46,0.00013698,2]
[334732585,1723518642822,-500.0,0.00013698,2]
[334732586,1723518642831,-527.14743389,0.00013698,2]
[334732587,1723518642840,-500.0,0.00013698,2]
[334732588,1723518642850,-500.0,0.00013698,2]
[334732589,1723518642860,-860.89,0.00013698,2]
[334732590,1723518642869,-860.89,0.00013698,2]
[334732591,1723518642879,-860.89,0.00013698,2]
[334732592,1723518642888,-860.89,0.00013698,2]
[334732593,1723518642899,-860.89,0.00013698,2]
[334732594,1723518642908,-860.89,0.00013698,2]
[334732595,1723518642918,-860.89,0.00013698,2]
[334732596,1723518642929,-860.89,0.00013698,2]
[334732597,1723518642940,-860.89,0.00013698,2]
[334732598,1723518642952,-930.37,0.00013698,2]
[334732599,1723518642972,-1142.18,0.00013698,2]
[334732600,1723518642982,-500.0,0.00013698,2]
[334732601,1723518642992,-500.0,0.00013698,2]
[334732602,1723518643002,-500.0,0.00013698,2]
[334732603,1723518643014,-500.0,0.00013698,2]
[334732604,1723518643023,-501.73655311,0.00013698,2]
[334732605,1723518643035,-500.0,0.00013698,2]
[334732606,1723518643045,-500.0,0.00013698,2]
[334732607,1723518643054,-502.39977827,0.00013698,2]
[334732608,1723518643065,-500.0,0.00013698,2]
[334732609,1723518643075,-821.39,0.00013698,2]
[334732610,1723518643084,-1871.97,0.00013698,2]
[334732611,1723518643094,-1244.73,0.00013698,2]
[334732612,1723518643103,-1485.27,0.00013698,2]
[334732613,1723518643113,-500.0,0.00013698,2]
[334732614,1723518643123,-500.0,0.00013698,2]
[334732615,1723518643133,-500.0,0.00013698,2]
[334732616,1723518643143,-500.0,0.00013698,2]
[334732617,1723518643153,-500.0,0.00013698,2]
[334732618,1723518643163,-658.34,0.00013698,2]
[334732619,1723518643176,-502.70542495,0.00013698,2]
[334732620,1723518643186,-895.92,0.00013698,2]
[334732621,1723518643198,-677.1,0.00013698,2]
[334732622,1723518643208,-6011.51,0.00013698,2]
[334732623,1723518643217,-673.86,0.00013698,2]
[334732624,1723518643227,-812.49,0.00013698,2]
[334732625,1723518643237,-515.05213383,0.00013698,2]
[334732626,1723518643248,-500.0,0.00013698,2]
[334732627,1723518643257,-500.0,0.00013698,2]
[334732628,1723518643266,-500.0,0.00013698,2]
[334732629,1723518643276,-500.0,0.00013698,2]
[334732630,1723518643285,-500.0,0.00013698,2]
[334732631,1723518643295,-507.27275818,0.00013698,2]
[334732632,1723518643304,-501.03037611,0.00013698,2]
[334732633,1723518643314,-839.67,0.00013698,2]
[334732634,1723518643324,-572.46,0.00013698,2]
[334732635,1723518643333,-502.55693021,0.00013698,2]
[334732636,1723518643343,-500.0,0.00013698,2]
[334732637,1723518643353,-564.12758029,0.00013698,2]
[334732638,1723518643362,-530.69285422,0.00013698,2]
[334732639,1723518643372,-1171.26,0.00013698,2]
[334732640,1723518643381,-500.0,0.00013698,2]
[334732641,1723518643390,-503.45512935,0.00013698,2]
[334732642,1723518643400,-500.0,0.00013698,2]
[334732643,1723518643410,-579.86,0.00013698,2]
[334732644,1723518643419,-503.24555776,0.00013698,2]
[334732645,1723518643429,-500.0,0.00013698,2]
[334732646,1723518643439,-500.0,0.00013698,2]
[334732647,1723518643450,-500.0,0.00013698,2]
[334732648,1723518643475,-506.59051584,0.00013698,2]
[334732649,1723518643484,-514.45262368,0.00013698,2]
[334732650,1723518643493,-500.0,0.00013698,2]
[334732651,1723518643503,-500.0,0.00013698,2]
[334732652,1723518643512,-500.0,0.00013698,2]
[334732653,1723518643522,-500.7342009,0.00013698,2]
[334732654,1723518643532,-503.02599088,0.00013698,2]
[334732655,1723518643541,-571.18,0.00013698,2]
[334732656,1723518643551,-6776.99,0.00013698,2]
[334732657,1723518643562,-500.0,0.00013698,2]
[334732658,1723518643571,-510.6312989,0.00013698,2]
[334732659,1723518643582,-2245.36,0.00013698,2]
[334732660,1723518643591,-150.112233,0.000137,2]
[334732661,1723518643601,-150.112233,0.000137,2]
[334732662,1723518643610,-500.0,0.00013765,2]
[334732663,1723518643620,-500.0,0.00013765,2]
[334732664,1723518643770,-500.0,0.00013765,2]
[334732665,1723518643780,-500.0,0.00013765,2]
[334732666,1723518643789,-860.89,0.00013769,2]
[334732667,1723518643799,-860.89,0.00013769,2]
[334732668,1723518643808,-860.89,0.00013769,2]
[334732669,1723518643817,-200.0,0.00013773,2]
[334732670,1723518643827,-200.0,0.00013773,2]
[334732671,1723518643836,-200.0,0.00013773,2]
[334732672,1723518643845,-500.0,0.00013775,2]
[334732673,1723518643855,-6960.81251022,0.00013779,2]
[334732674,1723518643864,-500.0,0.00013779,2]
[334732675,1723518643874,-860.89,0.00013779,2]
[334732676,1723518643883,-151.0,0.0001378,2]
[334732677,1723518643893,-151.0,0.0001378,2]
[334732678,1723518643903,-359.765493,0.0001378,2]
[334732679,1723518643912,-359.765493,0.0001378,2]
[334732680,1723518643922,-151.0,0.0001378,2]
[334732681,1723518643931,-151.0,0.0001378,2]
[334732682,1723518643940,-151.0,0.0001378,2]
[334732683,1723518643949,-177.451856,0.0001378,2]
[334732684,1723518643976,-177.451856,0.0001378,2]
[334732685,1723518643985,-151.876955,0.0001378,2]
[334732686,1723518643994,-361.01493,0.0001378,2]
[334732687,1723518644003,-361.01493,0.0001378,2]
[334732688,1723518644012,-151.0,0.0001378,2]
[334732689,1723518644021,-151.0,0.0001378,2]
[334732690,1723518644031,-151.0,0.0001378,2]
[334732691,1723518644041,-999.977613,0.0001378,2]
[334732692,1723518644051,-999.977613,0.0001378,2]
[334732693,1723518644060,-154.098913,0.0001378,2]
[334732694,1723518644070,-223.784138,0.0001378,2]
[334732695,1723518644079,-151.0,0.0001378,2]
[334732696,1723518644089,-433.094417,0.0001378,2]
[334732697,1723518644099,-433.094417,0.0001378,2]
[334732698,1723518644108,-151.420384,0.0001378,2]
[334732699,1723518644117,-500.0,0.00013787,2]
[334732700,1723518644127,-500.0,0.00013787,2]
[334732701,1723518644136,-500.0,0.00013851,2]
[334732702,1723518644146,-500.0,0.00013851,2]
[334732703,1723518644160,-500.0,0.00013851,2]
[334732704,1723518644169,-500.0,0.00013851,2]
[334732705,1723518644179,-500.0,0.00013851,2]
[334732706,1723518644188,-500.0,0.00013851,2]
[334732707,1723518644198,-500.0,0.00013861,2]
[334732708,1723518644208,-500.0,0.00013861,2]
[334732709,1723518644217,-500.0,0.00013861,2]
[334732710,1723518644227,-500.0,0.00013861,2]
[334732711,1723518644236,-500.0,0.00013868,2]
[334732712,1723518644246,-500.0,0.00013868,2]
[334732713,1723518644256,-500.0,0.00013868,2]
[334732714,1723518644265,-500.0,0.00013868,2]
[334732715,1723518644276,-500.0,0.00013869,2]
[334732716,1723518644286,-500.0,0.00013869,2]
[334732717,1723518644296,-500.0,0.00013869,2]
[334732718,1723518644305,-285.59539038,0.00013869,2]
[334732719,1723518644315,-500.0,0.00013871,2]
[334732720,1723518644325,-500.0,0.00013871,2]
[334732721,1723518644335,-500.0,0.00013878,2]
[334732722,1723518644345,-500.0,0.00013879,2]
[334732723,1723518644354,-500.0,0.00013879,2]
[334732724,1723518644364,-500.0,0.00013879,2]
[334732725,1723518644373,-860.89,0.00013879,2]
[334732726,1723518644383,-505.0683132,0.0001388,2]
[334732727,1723518644392,-632.68876494,0.0001388,2]
[334732728,1723518644402,-500.0,0.00013889,2]
[334732729,1723518644412,-500.0,0.00013889,2]
[334732730,1723518644421,-500.0,0.00013889,2]
[334732731,1723518644431,-406.69,0.00013889,2]
[334732732,1723518644440,-860.89,0.00013961,2]
[334732733,1723518644451,-860.89,0.00013961,2]
[334732734,1723518644478,-860.89,0.00013961,2]
[334732735,1723518644488,-860.89,0.00013961,2]
[334732736,1723518644497,-151.0,0.00013962,2]
[334732737,1723518644507,-151.0,0.00013962,2]
[334732738,1723518644517,-151.0,0.00013962,2]